[Event "EYCC Open-U12 2019"]
[Site "Bratislava"]
[Date "2019.08.07"]
[Round "6.50"]
[White "Aasen, Fredrik"]
[Black "Asllani, Dorian"]
[Result "1/2-1/2"]
[ECO "A15"]
[WhiteElo "1606"]
[BlackElo "1718"]
[Annotator "NA"]
[PlyCount "103"]
[EventDate "2019.08.02"]
[EventType "swiss"]
[EventCountry "SVK"]
[SourceTitle "playchess.com"]
[Source "ChessBase"]
[SourceQuality "1"]
[TimeControl "40/5400+30:1800+30"]

1. c4 {[%emt 0:00:00]} Nf6 {[%emt 0:00:25]} 2. g3 {[%emt 0:00:00]} c6 {[%emt 0:00:13]} 3. Bg2 {[%emt 0:00:00]} d5 {[%emt 0:00:12]} 4. Nf3 {[%emt 0:00:08]} Bg4 {[%emt 0:00:18]} 5. O-O {[%emt 0:03:56]} Bxf3 {[%emt 0:05:58]} 6. Bxf3 {[%emt 0:01:00]} e6 {[%emt 0:05:28]} 7. d4 {[%emt 0:03:33]} Bd6 {[%emt 0:02:01]} 8. Nd2 {[%emt 0:05:34]} O-O {[%emt 0:01:01]} 9. e4 {[%emt 0:03:45]} dxe4 {[%emt 0:02:12]} 10. Nxe4 {[%emt 0:01:09]} Nxe4 {[%emt 0:00:53]} 11. Bxe4 {[%emt 0:00:17]} Qe7 {[%emt 0:06:54]} 12. Qc2 {[%emt 0:04:34]} h6 {[%emt 0:01:36]} 13. Re1 {[%emt 0:04:38]} Rc8 {[%emt 0:08:15]} 14. Bd2 {[%emt 0:08:16]} Nd7 {[%emt 0:02:21]} 15. Bc3 {[%emt 0:06:28]} Qf8 {[%emt 0:04:58]} 16. b3 {[%emt 0:06:00]} Rab8 {[%emt 0:04:03]} 17. f4 {[%emt 0:06:05]} Nf6 {[%emt 0:05:32]} 18. Bf3 {[%emt 0:05:05]} Bb4 {[%emt 0:01:19]} 19. Bxb4 {[%emt 0:05:49]} Qxb4 {[%emt 0:01:22]} 20. a3 {[%emt 0:09:27]} Qd6 {[%emt 0:00:33]} 21. Red1 {[%emt 0:03:33]} b6 {[%emt 0:02:04]} 22. b4 {[%emt 0:03:00]} b5 {[%emt 0:04:23]} 23. c5 {[%emt 0:00:26]} Qd8 {[%emt 0:00:51]} 24. Qg2 {[%emt 0:01:21]} Qd7 {[%emt 0:01:39]} 25. Ra2 {[%emt 0:03:33]} Rc7 {[%emt 0:02:14]} 26. g4 {[%emt 0:05:05]} Rd8 {[%emt 0:00:52]} 27. h4 {[%emt 0:02:00]} Kf8 {[%emt 0:00:51]} 28. g5 {[%emt 0:02:40]} hxg5 {[%emt 0:00:16]} 29. hxg5 {[%emt 0:01:08]} Nd5 {[%emt 0:00:09]} 30. Bxd5 {[%emt 0:00:21]} Qxd5 {[%emt 0:00:06]} 31. Qxd5 {[%emt 0:00:18]} Rxd5 {[%emt 0:00:05]} 32. Kf2 {[%emt 0:01:28]} f6 {[%emt 0:02:17]} 33. g6 {[%emt 0:01:47]} Rh5 {[%emt 0:00:42]} 34. Rad2 {[%emt 0:02:47]} Rd7 {[%emt 0:00:26]} 35. Rd3 {[%emt 0:01:05]} Rdd5 {[%emt 0:00:32]} 36. Rf3 {[%emt 0:00:56]} Rdf5 {[%emt 0:01:08]} 37. Ke3 {[%emt 0:00:36]} Ke7 {[%emt 0:00:54]} 38. Rdf1 {[%emt 0:00:29]} Rd5 {[%emt 0:01:08]} 39. R1f2 {[%emt 0:00:28]} Rh1 {[%emt 0:00:35]} 40. Rf1 {[%emt 0:00:00]} Rxf1 {[%emt 0:00:00]} 41. Rxf1 {[%emt 0:01:18]} Rh5 {[%emt 0:02:59]} 42. Re1 {[%emt 0:14:02]} f5 {[%emt 0:04:59]} 43. Kf2 {[%emt 0:06:37]} Rh3 {[%emt 0:01:22]} 44. Ra1 {[%emt 0:06:36]} Rb3 {[%emt 0:02:56]} 45. a4 {[%emt 0:01:59]} Rxb4 {[%emt 0:00:55]} 46. axb5 {[%emt 0:00:13]} Rxb5 {[%emt 0:00:17]} 47. Rxa7+ {[%emt 0:00:22]} Kf6 {[%emt 0:00:06]} 48. Rd7 {[%emt 0:00:58]} Ra5 {[%emt 0:12:55]} 49. Rd6 {[%emt 0:01:12]} Ra6 {[%emt 0:00:12]} 50. Ke3 {[%emt 0:00:56]} Ke7 {[%emt 0:01:13]} 51. Kf2 {[%emt 0:00:50]} Kf6 {[%emt 0:00:18]} 52. Ke3 1/2-1/2

[Event "EYCC Open-U12 2019"]
[Site "Bratislava"]
[Date "2019.08.07"]
[Round "6.51"]
[White "Zlatkov, Anton"]
[Black "Koska, Jiri"]
[Result "1-0"]
[ECO "C44"]
[WhiteElo "1782"]
[BlackElo "1574"]
[Annotator "NA"]
[PlyCount "69"]
[EventDate "2019.08.02"]
[EventType "swiss"]
[EventCountry "SVK"]
[SourceTitle "playchess.com"]
[Source "ChessBase"]
[SourceQuality "1"]
[TimeControl "40/5400+30:1800+30"]

1. e4 {[%emt 0:00:00]} e5 {[%emt 0:00:00]} 2. Nf3 {[%emt 0:00:00]} Nc6 {[%emt 0:00:00]} 3. d4 {[%emt 0:00:00]} exd4 {[%emt 0:00:04]} 4. Bc4 {[%emt 0:01:04]} h6 {[%emt 0:01:33]} 5. O-O {[%emt 0:00:28]} Bc5 {[%emt 0:01:01]} 6. c3 {[%emt 0:00:18]} d3 {[%emt 0:01:29]} 7. Qxd3 {[%emt 0:02:45]} Nge7 {[%emt 0:00:25]} 8. Bxf7+ {[%emt 0:10:08]} Kxf7 {[%emt 0:01:12]} 9. Qc4+ {[%emt 0:00:08]} d5 {[%emt 0:00:49]} 10. Qxc5 {[%emt 0:00:21]} dxe4 {[%emt 0:00:38]} 11. Ne5+ {[%emt 0:01:32]} Nxe5 {[%emt 0:06:27]} 12. Qxe5 {[%emt 0:00:05]} Bf5 {[%emt 0:00:26]} 13. Bf4 {[%emt 0:05:11]} c6 {[%emt 0:00:29]} 14. Nd2 {[%emt 0:09:41]} Qd5 {[%emt 0:04:56]} 15. Rfe1 {[%emt 0:12:00]} Qxe5 {[%emt 0:11:05]} 16. Bxe5 {[%emt 0:00:41]} Ng6 {[%emt 0:00:17]} 17. Bg3 {[%emt 0:01:03]} Rhe8 {[%emt 0:10:17]} 18. Nc4 {[%emt 0:04:49]} Re7 {[%emt 0:05:03]} 19. Nd6+ {[%emt 0:02:01]} Kf6 {[%emt 0:01:57]} 20. Re3 {[%emt 0:03:24]} Rd8 {[%emt 0:08:22]} 21. Rae1 {[%emt 0:05:30]} b5 {[%emt 0:01:51]} 22. h4 {[%emt 0:00:34]} h5 {[%emt 0:09:12]} 23. f3 {[%emt 0:11:09]} Re6 {[%emt 0:14:31]} 24. fxe4 {[%emt 0:03:05]} Bg4 {[%emt 0:02:25]} 25. Rf1+ {[%emt 0:00:31]} Nf4 {[%emt 0:02:53]} 26. Bxf4 {[%emt 0:01:33]} Kg6 {[%emt 0:00:24]} 27. e5 {[%emt 0:00:27]} Rd7 {[%emt 0:02:22]} 28. Ne4 {[%emt 0:03:03]} Re8 {[%emt 0:01:24]} 29. Rf2 {[%emt 0:04:40]} a5 {[%emt 0:01:29]} 30. b4 {[%emt 0:01:52]} a4 {[%emt 0:00:29]} 31. Nc5 {[%emt 0:00:11]} Rd5 {[%emt 0:01:15]} 32. e6 {[%emt 0:00:28]} Kh7 {[%emt 0:04:07]} 33. Bg5 {[%emt 0:01:05]} Rf5 {[%emt 0:00:58]} 34. Rxf5 {[%emt 0:00:38]} Bxf5 {[%emt 0:00:02]} 35. e7 1-0

[Event "EYCC Open-U12 2019"]
[Site "Bratislava"]
[Date "2019.08.07"]
[Round "6.52"]
[White "Kolani, Arjun"]
[Black "Lye, Sverre"]
[Result "0-1"]
[ECO "B32"]
[WhiteElo "1699"]
[BlackElo "1839"]
[Annotator "NA"]
[PlyCount "44"]
[EventDate "2019.08.02"]
[EventType "swiss"]
[EventCountry "SVK"]
[SourceTitle "playchess.com"]
[Source "ChessBase"]
[SourceQuality "1"]
[TimeControl "40/5400+30:1800+30"]

1. e4 {[%emt 0:00:00]} c5 {[%emt 0:00:00]} 2. Nf3 {[%emt 0:00:00]} Nc6 {[%emt 0:00:00]} 3. d4 {[%emt 0:00:05]} cxd4 {[%emt 0:00:15]} 4. Nxd4 {[%emt 0:00:08]} e5 {[%emt 0:00:25]} 5. Nb5 {[%emt 0:00:30]} a6 {[%emt 0:00:40]} 6. Nd6+ {[%emt 0:01:27]} Bxd6 {[%emt 0:00:13]} 7. Qxd6 {[%emt 0:00:51]} Qf6 {[%emt 0:00:30]} 8. Qd1 {[%emt 0:08:57]} Qg6 {[%emt 0:00:48]} 9. Nc3 {[%emt 0:01:42]} d5 {[%emt 0:02:41]} 10. exd5 {[%emt 0:21:09]} Nd4 {[%emt 0:02:55]} 11. Bd3 {[%emt 0:03:23]} Qxg2 {[%emt 0:00:55]} 12. Be4 {[%emt 0:05:25]} Qh3 {[%emt 0:00:50]} 13. Be3 {[%emt 0:11:54]} Bg4 {[%emt 0:02:56]} 14. Qd3 {[%emt 0:05:19]} f5 {[%emt 0:06:50]} 15. Bxd4 {[%emt 0:04:17]} exd4 {[%emt 0:01:37]} 16. Qxd4 {[%emt 0:00:50]} fxe4 {[%emt 0:01:30]} 17. Qxe4+ {[%emt 0:21:26]} Kf7 {[%emt 0:03:11]} 18. Qf4+ {[%emt 0:02:11]} Nf6 {[%emt 0:02:55]} 19. Kd2 {[%emt 0:01:34]} Rad8 {[%emt 0:04:23]} 20. d6 {[%emt 0:01:23]} Qf3 {[%emt 0:02:01]} 21. Qc4+ {[%emt 0:02:07]} Be6 {[%emt 0:00:29]} 22. Qd4 {[%emt 0:01:08]} Qc6 0-1

[Event "EYCC Open-U12 2019"]
[Site "Bratislava"]
[Date "2019.08.07"]
[Round "6.53"]
[White "Hald Falkesgaard, Jeppe"]
[Black "Zakarian, Dimitrios Levon"]
[Result "0-1"]
[ECO "E43"]
[WhiteElo "1815"]
[BlackElo "1580"]
[Annotator "NA"]
[PlyCount "64"]
[EventDate "2019.08.02"]
[EventType "swiss"]
[EventCountry "SVK"]
[SourceTitle "playchess.com"]
[Source "ChessBase"]
[SourceQuality "1"]
[TimeControl "40/5400+30:1800+30"]

1. d4 {[%emt 0:00:00]} Nf6 {[%emt 0:00:00]} 2. c4 {[%emt 0:00:00]} e6 {[%emt 0:00:00]} 3. Nc3 {[%emt 0:00:00]} Bb4 {[%emt 0:00:00]} 4. e3 {[%emt 0:00:01]} b6 {[%emt 0:00:00]} 5. Bd3 {[%emt 0:00:06]} Bb7 {[%emt 0:00:39]} 6. Nf3 {[%emt 0:00:24]} O-O {[%emt 0:00:22]} 7. O-O {[%emt 0:01:03]} Bxc3 {[%emt 0:01:39]} 8. bxc3 {[%emt 0:00:12]} Ne4 {[%emt 0:00:18]} 9. Qc2 {[%emt 0:01:14]} f5 {[%emt 0:01:33]} 10. a4 {[%emt 0:04:25]} a5 {[%emt 0:04:39]} 11. Nd2 {[%emt 0:05:54]} Qh4 {[%emt 0:08:36]} 12. f3 {[%emt 0:04:51]} Ng5 {[%emt 0:07:25]} 13. e4 {[%emt 0:02:24]} fxe4 {[%emt 0:09:16]} 14. Nxe4 {[%emt 0:00:15]} Nxe4 {[%emt 0:00:26]} 15. Bxe4 {[%emt 0:00:31]} d5 {[%emt 0:01:18]} 16. cxd5 {[%emt 0:00:30]} exd5 {[%emt 0:01:24]} 17. Qb3 {[%emt 0:07:00]} Qh5 {[%emt 0:04:17]} 18. Re1 {[%emt 0:13:45]} Qf7 {[%emt 0:05:38]} 19. Bd3 {[%emt 0:09:16]} Nc6 {[%emt 0:06:49]} 20. Qc2 {[%emt 0:01:31]} Qh5 {[%emt 0:04:18]} 21. Bd2 {[%emt 0:02:22]} Rae8 {[%emt 0:01:02]} 22. Rxe8 {[%emt 0:02:18]} Rxe8 {[%emt 0:00:39]} 23. Bf4 {[%emt 0:00:47]} Re7 {[%emt 0:02:53]} 24. Bf5 {[%emt 0:02:42]} Kh8 {[%emt 0:04:49]} 25. Bg4 {[%emt 0:03:38]} Qe8 {[%emt 0:01:17]} 26. Qf5 {[%emt 0:04:41]} Re1+ {[%emt 0:01:28]} 27. Kf2 {[%emt 0:00:57]} Rxa1 {[%emt 0:00:18]} 28. Be5 {[%emt 0:00:29]} Ra2+ {[%emt 0:02:05]} 29. Kg3 {[%emt 0:00:12]} Nxe5 {[%emt 0:00:21]} 30. dxe5 {[%emt 0:00:07]} Re2 {[%emt 0:03:19]} 31. e6 {[%emt 0:00:16]} Kg8 {[%emt 0:01:24]} 32. Qd3 {[%emt 0:04:23]} Rxe6 {[%emt 0:02:06]} 0-1

[Event "EYCC Open-U12 2019"]
[Site "Bratislava"]
[Date "2019.08.07"]
[Round "6.54"]
[White "Cherniaev, Danil"]
[Black "Cina', Vittorio"]
[Result "1-0"]
[ECO "D35"]
[WhiteElo "1513"]
[BlackElo "1780"]
[Annotator "NA"]
[PlyCount "51"]
[EventDate "2019.08.02"]
[EventType "swiss"]
[EventCountry "SVK"]
[SourceTitle "playchess.com"]
[Source "ChessBase"]
[SourceQuality "1"]
[TimeControl "40/5400+30:1800+30"]

1. d4 d5 2. c4 e6 3. Nc3 Nf6 4. cxd5 exd5 5. Bg5 Be7 6. e3 O-O 7. Nf3 c6 8. Bd3 h6 9. Bh4 Re8 10. Qc2 Qc7 11. Bxf6 Bxf6 12. Nxd5 Qa5+ 13. Nc3 Bg4 14. Be2 Bxf3 15. gxf3 c5 16. d5 b5 17. O-O-O Bxc3 18. Qxc3 b4 19. Qc4 a6 20. Rhg1 g6 21. d6 Kg7 22. d7 Rd8 23. Qe4 Nxd7 24. Bc4 Nf8 25. Qe7 Kh8 26. Qf6+ 1-0

[Event "EYCC Open-U12 2019"]
[Site "Bratislava"]
[Date "2019.08.08"]
[Round "7.1"]
[White "Piliposyan, Robert"]
[Black "Makridis, Dimitrios"]
[Result "1/2-1/2"]
[ECO "D30"]
[WhiteElo "2156"]
[BlackElo "1798"]
[Annotator "NA"]
[PlyCount "76"]
[EventDate "2019.08.02"]
[EventType "swiss"]
[EventCountry "SVK"]
[SourceTitle "playchess.com"]
[Source "ChessBase"]
[SourceQuality "1"]
[TimeControl "40/5400+30:1800+30"]

1. d4 {[%emt 0:00:00]} d5 {[%emt 0:00:00]} 2. c4 {[%emt 0:00:00]} e6 {[%emt 0:00:00]} 3. Nf3 {[%emt 0:00:00]} Nf6 {[%emt 0:00:00]} 4. g3 {[%emt 0:00:00]} Bb4+ {[%emt 0:00:28]} 5. Bd2 {[%emt 0:00:04]} Be7 {[%emt 0:00:04]} 6. Qc2 {[%emt 0:00:03]} c6 {[%emt 0:00:34]} 7. Bg2 {[%emt 0:00:04]} Nbd7 {[%emt 0:00:29]} 8. O-O {[%emt 0:00:06]} O-O {[%emt 0:00:04]} 9. Bf4 {[%emt 0:00:02]} b6 {[%emt 0:03:24]} 10. b3 {[%emt 0:03:58]} Bb7 {[%emt 0:03:12]} 11. Nc3 {[%emt 0:01:55]} Rc8 {[%emt 0:08:43]} 12. e4 {[%emt 0:02:50]} dxe4 {[%emt 0:00:20]} 13. Nxe4 {[%emt 0:00:05]} Nxe4 {[%emt 0:00:18]} 14. Qxe4 {[%emt 0:00:05]} Nf6 {[%emt 0:00:04]} 15. Qc2 {[%emt 0:01:10]} Bd6 {[%emt 0:08:03]} 16. Bxd6 {[%emt 0:07:48]} Qxd6 {[%emt 0:00:03]} 17. c5 {[%emt 0:00:12]} Qe7 {[%emt 0:02:51]} 18. Ne5 {[%emt 0:02:16]} Rfd8 {[%emt 0:07:58]} 19. Rfd1 {[%emt 0:00:50]} Nd5 {[%emt 0:05:06]} 20. a3 {[%emt 0:15:00]} b5 {[%emt 0:22:42]} 21. b4 {[%emt 0:02:05]} Qc7 {[%emt 0:03:45]} 22. Qb3 {[%emt 0:07:28]} Ne7 {[%emt 0:02:29]} 23. Be4 {[%emt 0:01:47]} Nf5 {[%emt 0:00:56]} 24. Bxf5 {[%emt 0:03:31]} exf5 {[%emt 0:00:23]} 25. a4 {[%emt 0:00:18]} a6 {[%emt 0:01:28]} 26. f4 {[%emt 0:04:43]} Rd5 {[%emt 0:05:54]} 27. Nf3 {[%emt 0:08:41]} Rcd8 {[%emt 0:01:50]} 28. Re1 {[%emt 0:08:04]} Bc8 {[%emt 0:01:51]} 29. axb5 {[%emt 0:00:06]} axb5 {[%emt 0:00:15]} 30. Qa2 {[%emt 0:04:14]} Be6 {[%emt 0:06:35]} 31. Ng5 {[%emt 0:00:41]} Qd7 {[%emt 0:01:13]} 32. Nxe6 {[%emt 0:11:41]} fxe6 {[%emt 0:00:05]} 33. Kg2 {[%emt 0:00:32]} Rxd4 {[%emt 0:01:26]} 34. Qxe6+ {[%emt 0:00:18]} Qxe6 {[%emt 0:00:05]} 35. Rxe6 {[%emt 0:00:02]} Rxb4 {[%emt 0:00:16]} 36. Ra7 {[%emt 0:00:36]} Rb2+ {[%emt 0:02:38]} 37. Kh3 {[%emt 0:00:19]} h6 {[%emt 0:00:15]} 38. Ree7 {[%emt 0:02:31]} Rdd2 {[%emt 0:00:26]} 1/2-1/2

[Event "EYCC Open-U12 2019"]
[Site "Bratislava"]
[Date "2019.08.08"]
[Round "7.2"]
[White "Maurizzi, Marc Andria"]
[Black "Bat, Bilguun"]
[Result "1-0"]
[ECO "C41"]
[WhiteElo "2412"]
[BlackElo "2093"]
[Annotator "NA"]
[PlyCount "91"]
[EventDate "2019.08.02"]
[EventType "swiss"]
[EventCountry "SVK"]
[SourceTitle "playchess.com"]
[Source "ChessBase"]
[SourceQuality "1"]
[TimeControl "40/5400+30:1800+30"]

1. e4 {[%emt 0:00:00]} d6 {[%emt 0:00:00]} 2. d4 {[%emt 0:00:00]} Nf6 {[%emt 0:00:00]} 3. Nc3 {[%emt 0:00:00]} e5 {[%emt 0:00:44]} 4. Nf3 {[%emt 0:00:13]} Nbd7 {[%emt 0:00:34]} 5. Bc4 {[%emt 0:00:12]} exd4 {[%emt 0:02:48]} 6. Nxd4 {[%emt 0:00:17]} Nb6 {[%emt 0:01:50]} 7. Be2 {[%emt 0:00:51]} Be7 {[%emt 0:01:45]} 8. O-O {[%emt 0:00:12]} O-O {[%emt 0:00:36]} 9. f4 {[%emt 0:01:47]} c6 {[%emt 0:06:57]} 10. Bf3 {[%emt 0:02:03]} d5 {[%emt 0:04:14]} 11. e5 {[%emt 0:01:39]} Nfd7 {[%emt 0:01:29]} 12. Kh1 {[%emt 0:05:40]} Nc5 {[%emt 0:10:20]} 13. Bg4 {[%emt 0:14:25]} f6 {[%emt 0:19:57]} 14. e6 {[%emt 0:01:51]} f5 {[%emt 0:00:42]} 15. Bxf5 {[%emt 0:00:40]} Bf6 {[%emt 0:00:29]} 16. Re1 {[%emt 0:13:42]} g6 {[%emt 0:22:23]} 17. Bh3 {[%emt 0:06:27]} Ne4 {[%emt 0:00:31]} 18. Be3 {[%emt 0:13:09]} Nc4 {[%emt 0:03:14]} 19. Bg1 {[%emt 0:02:24]} Ncd6 {[%emt 0:03:29]} 20. Nxe4 {[%emt 0:02:06]} Nxe4 {[%emt 0:01:23]} 21. c4 {[%emt 0:11:06]} Qe7 {[%emt 0:06:02]} 22. cxd5 {[%emt 0:00:43]} cxd5 {[%emt 0:00:04]} 23. Qb3 {[%emt 0:01:39]} Bxd4 {[%emt 0:01:41]} 24. Bxd4 {[%emt 0:00:13]} Bxe6 {[%emt 0:00:51]} 25. Rxe4 {[%emt 0:00:06]} dxe4 {[%emt 0:01:30]} 26. Qxe6+ {[%emt 0:00:32]} Qf7 {[%emt 0:00:28]} 27. Qxe4 {[%emt 0:00:50]} Rae8 {[%emt 0:00:13]} 28. Be5 {[%emt 0:00:35]} Rd8 {[%emt 0:00:41]} 29. Bg4 {[%emt 0:02:48]} h5 {[%emt 0:01:44]} 30. Bd1 {[%emt 0:00:30]} Qf5 {[%emt 0:00:22]} 31. Bb3+ {[%emt 0:00:39]} Kh7 {[%emt 0:00:07]} 32. Qxf5 {[%emt 0:00:55]} gxf5 {[%emt 0:00:38]} 33. h4 {[%emt 0:01:31]} Rd2 {[%emt 0:03:36]} 34. Rc1 {[%emt 0:01:09]} Rfd8 {[%emt 0:00:20]} 35. Rc3 {[%emt 0:00:58]} R2d3 {[%emt 0:00:37]} 36. Rxd3 {[%emt 0:00:03]} Rxd3 {[%emt 0:00:04]} 37. Bc2 {[%emt 0:00:03]} Rd2 {[%emt 0:00:41]} 38. Bxf5+ {[%emt 0:00:02]} Kh6 {[%emt 0:00:02]} 39. Be6 {[%emt 0:00:56]} Re2 {[%emt 0:00:57]} 40. Kg1 {[%emt 0:00:00]} a5 {[%emt 0:00:00]} 41. Kf1 {[%emt 0:00:21]} Re4 {[%emt 0:04:49]} 42. Kf2 {[%emt 0:00:16]} b5 {[%emt 0:01:12]} 43. Bd5 {[%emt 0:00:42]} Rb4 {[%emt 0:00:17]} 44. f5 {[%emt 0:00:51]} Rxh4 {[%emt 0:01:46]} 45. f6 {[%emt 0:00:18]} Kg6 {[%emt 0:02:54]} 46. f7 {[%emt 0:00:17]} 1-0

[Event "EYCC Open-U12 2019"]
[Site "Bratislava"]
[Date "2019.08.08"]
[Round "7.3"]
[White "Ozkan, Taha"]
[Black "Petrovskiy, Vadim"]
[Result "0-1"]
[ECO "E92"]
[WhiteElo "2140"]
[BlackElo "2090"]
[Annotator "NA"]
[PlyCount "66"]
[EventDate "2019.08.02"]
[EventType "swiss"]
[EventCountry "SVK"]
[SourceTitle "playchess.com"]
[Source "ChessBase"]
[SourceQuality "1"]
[TimeControl "40/5400+30:1800+30"]

1. d4 {[%emt 0:00:00]} Nf6 {[%emt 0:00:00]} 2. c4 {[%emt 0:00:00]} g6 {[%emt 0:00:00]} 3. Nc3 {[%emt 0:00:00]} Bg7 {[%emt 0:00:00]} 4. e4 {[%emt 0:00:00]} d6 {[%emt 0:00:00]} 5. Nf3 {[%emt 0:00:00]} O-O {[%emt 0:00:07]} 6. Be2 {[%emt 0:00:03]} e5 {[%emt 0:00:09]} 7. Be3 {[%emt 0:00:04]} Ng4 {[%emt 0:02:23]} 8. Bg5 {[%emt 0:00:09]} f6 {[%emt 0:00:21]} 9. Bc1 {[%emt 0:00:06]} exd4 {[%emt 0:02:46]} 10. Nxd4 {[%emt 0:00:09]} f5 {[%emt 0:00:14]} 11. h3 {[%emt 0:00:11]} Nh6 {[%emt 0:08:03]} 12. Bxh6 {[%emt 0:00:11]} Bxh6 {[%emt 0:00:03]} 13. exf5 {[%emt 0:00:08]} gxf5 {[%emt 0:01:01]} 14. O-O {[%emt 0:00:31]} Na6 {[%emt 0:04:24]} 15. Bf3 {[%emt 0:08:06]} c6 {[%emt 0:04:32]} 16. Re1 {[%emt 0:04:57]} Qf6 {[%emt 0:00:51]} 17. Nb3 {[%emt 0:08:19]} Bf4 {[%emt 0:13:14]} 18. Qe2 {[%emt 0:12:23]} Be5 {[%emt 0:08:55]} 19. Rad1 {[%emt 0:12:18]} Be6 {[%emt 0:05:40]} 20. Bh5 {[%emt 0:16:20]} Qh6 {[%emt 0:09:01]} 21. Nd4 {[%emt 0:10:14]} Bd7 {[%emt 0:00:59]} 22. Bf3 {[%emt 0:06:20]} Rae8 {[%emt 0:06:39]} 23. Qc2 {[%emt 0:01:55]} Kh8 {[%emt 0:02:23]} 24. Qd2 {[%emt 0:06:38]} Qh4 {[%emt 0:02:36]} 25. Be2 {[%emt 0:05:21]} Rg8 {[%emt 0:00:38]} 26. Bf1 {[%emt 0:04:49]} Bf4 {[%emt 0:08:34]} 27. Qd3 {[%emt 0:00:39]} Nc5 {[%emt 0:00:13]} 28. Qf3 {[%emt 0:00:42]} Ne4 {[%emt 0:00:12]} 29. Nde2 {[%emt 0:03:13]} Ng5 {[%emt 0:00:25]} 30. Qd3 {[%emt 0:00:38]} Nxh3+ {[%emt 0:10:36]} 31. Qxh3 {[%emt 0:00:25]} Qxh3 {[%emt 0:00:08]} 32. Nxf4 {[%emt 0:00:25]} Qh6 {[%emt 0:00:07]} 33. Rxe8 {[%emt 0:00:35]} Bxe8 {[%emt 0:01:12]} 0-1

[Event "EYCC Open-U12 2019"]
[Site "Bratislava"]
[Date "2019.08.08"]
[Round "7.4"]
[White "Samadov, Read"]
[Black "Vergara Anton, Diego"]
[Result "1/2-1/2"]
[ECO "D35"]
[WhiteElo "2230"]
[BlackElo "2183"]
[Annotator "NA"]
[PlyCount "62"]
[EventDate "2019.08.02"]
[EventType "swiss"]
[EventCountry "SVK"]
[SourceTitle "playchess.com"]
[Source "ChessBase"]
[SourceQuality "1"]
[TimeControl "40/5400+30:1800+30"]

1. d4 {[%emt 0:00:00]} d5 {[%emt 0:00:00]} 2. c4 {[%emt 0:00:00]} e6 {[%emt 0:00:04]} 3. Nc3 {[%emt 0:00:00]} Nf6 {[%emt 0:00:16]} 4. cxd5 {[%emt 0:00:25]} exd5 {[%emt 0:00:07]} 5. Bg5 {[%emt 0:00:12]} Be7 {[%emt 0:01:01]} 6. e3 {[%emt 0:00:34]} c6 {[%emt 0:00:58]} 7. Bd3 {[%emt 0:00:39]} O-O {[%emt 0:00:30]} 8. Nge2 {[%emt 0:03:02]} Nbd7 {[%emt 0:00:41]} 9. Qc2 {[%emt 0:01:17]} Re8 {[%emt 0:00:39]} 10. O-O {[%emt 0:01:09]} Nf8 {[%emt 0:01:40]} 11. Rae1 {[%emt 0:05:18]} g6 {[%emt 0:01:58]} 12. a3 {[%emt 0:12:21]} Ne6 {[%emt 0:04:18]} 13. Bh4 {[%emt 0:01:34]} a5 {[%emt 0:02:52]} 14. Na4 {[%emt 0:06:03]} b5 {[%emt 0:11:38]} 15. Nc5 {[%emt 0:01:33]} Nxc5 {[%emt 0:00:26]} 16. dxc5 {[%emt 0:00:23]} a4 {[%emt 0:02:46]} 17. Nd4 {[%emt 0:05:44]} Bb7 {[%emt 0:03:52]} 18. Rc1 {[%emt 0:05:24]} Rc8 {[%emt 0:03:36]} 19. Rfd1 {[%emt 0:08:23]} Nd7 {[%emt 0:04:02]} 20. Bxe7 {[%emt 0:00:15]} Qxe7 {[%emt 0:00:11]} 21. Nf3 {[%emt 0:02:14]} Ne5 {[%emt 0:02:41]} 22. Nxe5 {[%emt 0:01:51]} Qxe5 {[%emt 0:00:01]} 23. Be2 {[%emt 0:02:37]} Rc7 {[%emt 0:03:32]} 24. Rd4 {[%emt 0:06:35]} Bc8 {[%emt 0:02:38]} 25. Qc3 {[%emt 0:09:06]} Ra7 {[%emt 0:07:52]} 26. Bf3 {[%emt 0:02:47]} Bf5 {[%emt 0:08:17]} 27. Rcd1 {[%emt 0:04:24]} Rae7 {[%emt 0:03:18]} 28. Qb4 {[%emt 0:02:21]} Qf6 {[%emt 0:05:33]} 29. Qc3 {[%emt 0:02:09]} Qg7 {[%emt 0:04:18]} 30. Qa5 {[%emt 0:02:44]} Qf6 {[%emt 0:05:10]} 31. Qc3 {[%emt 0:05:02]} Qg7 {[%emt 0:00:43]} 1/2-1/2